[Event "Titled Tuesday Blitz August 08 Late 2023"]
[White "Ibadov, Dashgyn"]
[Black "Lopez Gracia, Fernando"]
[WhiteFideId "24107514"]
[BlackFideId "2207184"]
[WhiteElo "2509"]
[BlackElo "2349"]
[Result "1-0"]
[Round "7"]
[TimeControl "180+1"]
[Date "2023.08.08"]
[WhiteClock "0:00:04"]
[BlackClock "0:00:01"]
[Board "92"]

1. e4 {[%clk 0:03:00]}  c5 {[%clk 0:02:59]} 2. Nf3 {[%clk 0:03:00]}  e6 {[%clk 0:02:57]} 3. d4 {[%clk 0:02:59]}  cxd4 {[%clk 0:02:58]} 4. Nxd4 {[%clk 0:03:00]}  Nf6 {[%clk 0:02:59]} 5. Nc3 {[%clk 0:03:00]}  Nc6 {[%clk 0:02:59]} 6. Ndb5 {[%clk 0:02:59]}  Bb4 {[%clk 0:02:59]} 7. a3 {[%clk 0:02:58]}  Bxc3+ {[%clk 0:03:00]} 8. Nxc3 {[%clk 0:02:59]}  d5 {[%clk 0:03:00]} 9. exd5 {[%clk 0:03:00]}  exd5 {[%clk 0:03:00]} 10. Bd3 {[%clk 0:03:01]}  O-O {[%clk 0:03:00]} 11. O-O {[%clk 0:03:00]}  d4 {[%clk 0:03:01]} 12. Ne2 {[%clk 0:03:00]}  Bg4 {[%clk 0:03:01]} 13. Bg5 {[%clk 0:02:54]}  Re8 {[%clk 0:02:54]} 14. f3 {[%clk 0:02:30]}  Bh5 {[%clk 0:02:54]} 15. Nf4 {[%clk 0:02:24]}  Bg6 {[%clk 0:02:52]} 16. Nxg6 {[%clk 0:02:25]}  hxg6 {[%clk 0:02:53]} 17. Qd2 {[%clk 0:02:22]}  Qb6 {[%clk 0:02:51]} 18. b4 {[%clk 0:02:17]}  Nd5 {[%clk 0:02:51]} 19. Rae1 {[%clk 0:02:09]}  Ne3 {[%clk 0:02:47]} 20. Rf2 {[%clk 0:02:04]}  Re6 {[%clk 0:02:28]} 21. Be4 {[%clk 0:01:47]}  Rae8 {[%clk 0:02:16]} 22. Bxe3 {[%clk 0:01:46]}  dxe3 {[%clk 0:02:15]} 23. Qxe3 {[%clk 0:01:47]}  Qa6 {[%clk 0:01:45]} 24. Qb3 {[%clk 0:01:27]}  Kh8 {[%clk 0:01:38]} 25. Rd1 {[%clk 0:01:22]}  Qb6 {[%clk 0:01:34]} 26. c4 {[%clk 0:01:14]}  f5 {[%clk 0:01:28]} 27. c5 {[%clk 0:01:13]}  Qc7 {[%clk 0:01:27]} 28. Bd3 {[%clk 0:00:51]}  Nd4 {[%clk 0:01:20]} 29. Qc4 {[%clk 0:00:45]}  Qf4 {[%clk 0:01:20]} 30. Bf1 {[%clk 0:00:39]}  Rd8 {[%clk 0:01:01]} 31. Qc1 {[%clk 0:00:13]}  Qh4 {[%clk 0:00:47]} 32. Rfd2 {[%clk 0:00:11]}  Qf4 {[%clk 0:00:32]} 33. Qb2 {[%clk 0:00:10]}  Qe3+ {[%clk 0:00:29]} 34. Kh1 {[%clk 0:00:10]}  Kh7 {[%clk 0:00:17]} 35. Rxd4 {[%clk 0:00:09]}  Rxd4 {[%clk 0:00:17]} 36. Qxd4 {[%clk 0:00:10]}  Qxa3 {[%clk 0:00:17]} 37. Qh4+ {[%clk 0:00:10]}  Kg8 {[%clk 0:00:16]} 38. Rd8+ {[%clk 0:00:09]}  Kf7 {[%clk 0:00:17]} 39. Rd7+ {[%clk 0:00:06]}  Kg8 {[%clk 0:00:17]} 40. Rd8+ {[%clk 0:00:04]}  Kf7 {[%clk 0:00:17]} 41. Qh8 {[%clk 0:00:04]}  Re7 {[%clk 0:00:09]} 42. Qf8+ {[%clk 0:00:04]}  Ke6 {[%clk 0:00:10]} 43. Rd6+ {[%clk 0:00:04]}  Ke5 {[%clk 0:00:11]} 44. Qxe7+ {[%clk 0:00:05]}  Kf4 {[%clk 0:00:12]} 45. Rxg6 {[%clk 0:00:04]}  Qa1 {[%clk 0:00:08]} 46. Qd6+ {[%clk 0:00:05]}  Ke3 {[%clk 0:00:08]} 47. Re6+ {[%clk 0:00:04]}  Kf2 {[%clk 0:00:08]} 48. Qd4+ {[%clk 0:00:04]}  Kxf1 {[%clk 0:00:01]} 49. Qxa1+ {[%clk 0:00:04]} 1-0


[Site "https://www.chess.com"]

[Event "Titled Tuesday Blitz August 08 Late 2023"]
[White "De Souza, Cristiano Gomes"]
[Black "Toncheva, Nadya"]
[WhiteFideId "2151758"]
[BlackFideId "2924056"]
[WhiteElo "2256"]
[BlackElo "2501"]
[Result "0-1"]
[Round "7"]
[TimeControl "180+1"]
[Date "2023.08.08"]
[WhiteClock "0:00:21"]
[BlackClock "0:00:08"]
[Board "95"]

1. d4 {[%clk 0:03:00]}  d5 {[%clk 0:03:00]} 2. c4 {[%clk 0:03:00]}  dxc4 {[%clk 0:03:00]} 3. Nf3 {[%clk 0:03:00]}  Nf6 {[%clk 0:03:00]} 4. e3 {[%clk 0:03:00]}  Bg4 {[%clk 0:03:00]} 5. Bxc4 {[%clk 0:03:00]}  e6 {[%clk 0:03:00]} 6. Nbd2 {[%clk 0:02:58]}  a6 {[%clk 0:03:00]} 7. h3 {[%clk 0:02:58]}  Bh5 {[%clk 0:03:00]} 8. Be2 {[%clk 0:02:58]}  Nbd7 {[%clk 0:03:00]} 9. Nc4 {[%clk 0:02:58]}  Be7 {[%clk 0:02:48]} 10. Nce5 {[%clk 0:02:57]}  Nxe5 {[%clk 0:02:40]} 11. Nxe5 {[%clk 0:02:57]}  Bxe2 {[%clk 0:02:39]} 12. Qxe2 {[%clk 0:02:58]}  O-O {[%clk 0:02:39]} 13. O-O {[%clk 0:02:58]}  c5 {[%clk 0:02:37]} 14. dxc5 {[%clk 0:02:53]}  Bxc5 {[%clk 0:02:36]} 15. b3 {[%clk 0:02:51]}  Qe7 {[%clk 0:02:35]} 16. Bb2 {[%clk 0:02:51]}  Rac8 {[%clk 0:02:34]} 17. Rac1 {[%clk 0:02:51]}  Rfd8 {[%clk 0:02:32]} 18. Rfd1 {[%clk 0:02:50]}  Nd5 {[%clk 0:02:18]} 19. Nd3 {[%clk 0:02:47]}  Ba3 {[%clk 0:02:14]} 20. Rxc8 {[%clk 0:02:45]}  Rxc8 {[%clk 0:02:13]} 21. Rc1 {[%clk 0:02:44]}  Rxc1+ {[%clk 0:02:06]} 22. Bxc1 {[%clk 0:02:41]}  Bxc1 {[%clk 0:02:03]} 23. Nxc1 {[%clk 0:02:41]}  Qc5 {[%clk 0:01:52]} 24. Qd2 {[%clk 0:02:33]}  h6 {[%clk 0:01:45]} 25. e4 {[%clk 0:02:22]}  Nc3 {[%clk 0:01:39]} 26. Qc2 {[%clk 0:02:03]}  Qd4 {[%clk 0:01:38]} 27. Ne2 {[%clk 0:01:55]}  Qxe4 {[%clk 0:01:23]} 28. Qxc3 {[%clk 0:01:52]}  Qxe2 {[%clk 0:01:23]} 29. Qc8+ {[%clk 0:01:51]}  Kh7 {[%clk 0:01:22]} 30. Qxb7 {[%clk 0:01:52]}  Qxa2 {[%clk 0:01:14]} 31. Qxf7 {[%clk 0:01:51]}  Qxb3 {[%clk 0:01:11]} 32. f4 {[%clk 0:01:47]}  Qb1+ {[%clk 0:01:05]} 33. Kh2 {[%clk 0:01:44]}  Qf5 {[%clk 0:01:05]} 34. Qc7 {[%clk 0:01:42]}  a5 {[%clk 0:01:05]} 35. Kg3 {[%clk 0:01:39]}  a4 {[%clk 0:01:00]} 36. Qc4 {[%clk 0:01:27]}  a3 {[%clk 0:00:46]} 37. Qb3 {[%clk 0:01:24]}  Qa5 {[%clk 0:00:38]} 38. Qxe6 {[%clk 0:01:10]}  h5 {[%clk 0:00:21]} 39. f5 {[%clk 0:01:07]}  Qc3+ {[%clk 0:00:16]} 40. Kh2 {[%clk 0:01:03]}  Qf6 {[%clk 0:00:14]} 41. Qb3 {[%clk 0:00:59]}  Qd6+ {[%clk 0:00:13]} 42. Kg1 {[%clk 0:00:55]}  Qd4+ {[%clk 0:00:13]} 43. Kh2 {[%clk 0:00:54]}  Qf4+ {[%clk 0:00:12]} 44. Kg1 {[%clk 0:00:54]}  Qc1+ {[%clk 0:00:12]} 45. Kh2 {[%clk 0:00:54]}  Qf4+ {[%clk 0:00:09]} 46. Kg1 {[%clk 0:00:53]}  Qd4+ {[%clk 0:00:10]} 47. Kh2 {[%clk 0:00:53]}  Qb2 {[%clk 0:00:09]} 48. Qe6 {[%clk 0:00:53]}  Qb8+ {[%clk 0:00:06]} 49. g3 {[%clk 0:00:46]}  Qb2+ {[%clk 0:00:05]} 50. Kg1 {[%clk 0:00:45]}  Qc1+ {[%clk 0:00:06]} 51. Kg2 {[%clk 0:00:45]}  Qd2+ {[%clk 0:00:05]} 52. Kg1 {[%clk 0:00:44]}  Qg5 {[%clk 0:00:05]} 53. Qb3 {[%clk 0:00:42]}  Qxf5 {[%clk 0:00:04]} 54. Qxa3 {[%clk 0:00:41]}  Qxh3 {[%clk 0:00:04]} 55. Qd3+ {[%clk 0:00:40]}  Kh6 {[%clk 0:00:03]} 56. Qd6+ {[%clk 0:00:39]}  Kh7 {[%clk 0:00:03]} 57. Qd3+ {[%clk 0:00:38]}  Kg8 {[%clk 0:00:03]} 58. Qd8+ {[%clk 0:00:38]}  Kf7 {[%clk 0:00:03]} 59. Qc7+ {[%clk 0:00:35]}  Kf6 {[%clk 0:00:04]} 60. Qd6+ {[%clk 0:00:34]}  Qe6 {[%clk 0:00:03]} 61. Qf4+ {[%clk 0:00:34]}  Kg6 {[%clk 0:00:03]} 62. Kf2 {[%clk 0:00:32]}  Qa2+ {[%clk 0:00:03]} 63. Kf3 {[%clk 0:00:32]}  Qd5+ {[%clk 0:00:03]} 64. Ke3 {[%clk 0:00:32]}  Qe6+ {[%clk 0:00:03]} 65. Kf2 {[%clk 0:00:32]}  Qf5 {[%clk 0:00:03]} 66. Kf3 {[%clk 0:00:32]}  Qxf4+ {[%clk 0:00:03]} 67. Kxf4 {[%clk 0:00:33]}  Kf6 {[%clk 0:00:04]} 68. Ke4 {[%clk 0:00:33]}  Kg5 {[%clk 0:00:05]} 69. Kf3 {[%clk 0:00:32]}  Kf5 {[%clk 0:00:06]} 70. Ke3 {[%clk 0:00:32]}  Kg4 {[%clk 0:00:06]} 71. Kf2 {[%clk 0:00:33]}  Kh3 {[%clk 0:00:06]} 72. Kf3 {[%clk 0:00:33]}  g5 {[%clk 0:00:06]} 73. Kf2 {[%clk 0:00:33]}  g4 {[%clk 0:00:07]} 74. Ke2 {[%clk 0:00:22]}  Kxg3 {[%clk 0:00:08]} 75. Kf1 {[%clk 0:00:21]}  h4 {[%clk 0:00:09]} 76. Kg1 {[%clk 0:00:21]}  Kf3 {[%clk 0:00:06]} 77. Kf1 {[%clk 0:00:21]}  g3 {[%clk 0:00:06]} 78. Kg1 {[%clk 0:00:22]}  g2 {[%clk 0:00:06]} 79. Kh2 {[%clk 0:00:22]}  Kf2 {[%clk 0:00:07]} 80. Kh3 {[%clk 0:00:23]}  g1=Q {[%clk 0:00:07]} 81. Kxh4 {[%clk 0:00:24]}  Kf3 {[%clk 0:00:07]} 82. Kh5 {[%clk 0:00:21]}  Kf4 {[%clk 0:00:08]} 0-1


[Site "https://www.chess.com"]

[Event "Titled Tuesday Blitz August 08 Late 2023"]
[White "Kula, Robert"]
[Black "Remolar Gallen, Jose"]
[WhiteFideId "1101218"]
[BlackFideId "2215187"]
[WhiteElo "2255"]
[BlackElo "2499"]
[Result "0-1"]
[Round "7"]
[TimeControl "180+1"]
[Date "2023.08.08"]
[WhiteClock "0:00:00"]
[BlackClock "0:01:05"]
[Board "96"]

1. d4 {[%clk 0:03:00]}  Nf6 {[%clk 0:02:59]} 2. Nf3 {[%clk 0:03:00]}  g6 {[%clk 0:02:58]} 3. c4 {[%clk 0:03:00]}  Bg7 {[%clk 0:02:58]} 4. Nc3 {[%clk 0:03:00]}  O-O {[%clk 0:02:57]} 5. e4 {[%clk 0:03:00]}  d6 {[%clk 0:02:56]} 6. Bd3 {[%clk 0:02:54]}  Bg4 {[%clk 0:02:55]} 7. h3 {[%clk 0:02:54]}  Bxf3 {[%clk 0:02:55]} 8. Qxf3 {[%clk 0:02:53]}  Nc6 {[%clk 0:02:55]} 9. Be3 {[%clk 0:02:53]}  Nd7 {[%clk 0:02:55]} 10. d5 {[%clk 0:02:45]}  Nd4 {[%clk 0:02:42]} 11. Qd1 {[%clk 0:02:44]}  c5 {[%clk 0:02:41]} 12. O-O {[%clk 0:02:43]}  e5 {[%clk 0:02:39]} 13. Rb1 {[%clk 0:02:35]}  f5 {[%clk 0:02:34]} 14. f3 {[%clk 0:02:35]}  Rf7 {[%clk 0:02:27]} 15. b4 {[%clk 0:02:32]}  b6 {[%clk 0:02:25]} 16. bxc5 {[%clk 0:02:32]}  Nxc5 {[%clk 0:02:24]} 17. Bc2 {[%clk 0:02:22]}  Rc8 {[%clk 0:02:06]} 18. exf5 {[%clk 0:02:03]}  gxf5 {[%clk 0:02:05]} 19. Bxd4 {[%clk 0:02:02]}  exd4 {[%clk 0:02:04]} 20. Nb5 {[%clk 0:02:02]}  Qf6 {[%clk 0:02:04]} 21. Bd3 {[%clk 0:01:54]}  Bh6 {[%clk 0:01:55]} 22. f4 {[%clk 0:01:49]}  Rg7 {[%clk 0:01:35]} 23. Rb2 {[%clk 0:01:29]}  Kh8 {[%clk 0:01:29]} 24. Re2 {[%clk 0:01:28]}  Rcg8 {[%clk 0:01:25]} 25. Kh2 {[%clk 0:01:18]}  a6 {[%clk 0:01:22]} 26. Na3 {[%clk 0:01:15]}  Qh4 {[%clk 0:01:19]} 27. Bxf5 {[%clk 0:00:45]}  Bxf4+ {[%clk 0:01:12]} 28. Kh1 {[%clk 0:00:42]}  Qg3 {[%clk 0:01:09]} 29. Rxf4 {[%clk 0:00:26]}  Qxf4 {[%clk 0:01:10]} 30. Be6 {[%clk 0:00:26]}  Rf8 {[%clk 0:01:07]} 31. Re1 {[%clk 0:00:08]}  Ne4 {[%clk 0:01:05]} 32. Qd3 {[%clk 0:00:01]}  Nf2+ {[%clk 0:01:04]} 33. Kg1 {[%clk 0:00:00]}  Nxd3 {[%clk 0:01:05]} 0-1


[Site "https://www.chess.com"]

[Event "Titled Tuesday Blitz August 08 Late 2023"]
[White "Bochnicka, Vladimir"]
[Black "Sailer, Mike"]
[WhiteFideId "14943450"]
[BlackFideId "2012901"]
[WhiteElo "2497"]
[BlackElo "2213"]
[Result "1-0"]
[Round "7"]
[TimeControl "180+1"]
[Date "2023.08.08"]
[WhiteClock "0:01:04"]
[BlackClock "0:00:02"]
[Board "97"]

1. e4 {[%clk 0:02:59]}  d5 {[%clk 0:03:00]} 2. exd5 {[%clk 0:02:59]}  Qxd5 {[%clk 0:02:59]} 3. Nc3 {[%clk 0:02:58]}  Qd6 {[%clk 0:02:59]} 4. g3 {[%clk 0:02:56]}  c6 {[%clk 0:02:59]} 5. d4 {[%clk 0:02:56]}  Nf6 {[%clk 0:02:58]} 6. Bf4 {[%clk 0:02:57]}  Qd8 {[%clk 0:02:58]} 7. Bg2 {[%clk 0:02:56]}  Bf5 {[%clk 0:02:48]} 8. Nf3 {[%clk 0:02:56]}  e6 {[%clk 0:02:49]} 9. Qd2 {[%clk 0:02:55]}  Bb4 {[%clk 0:02:47]} 10. O-O {[%clk 0:02:48]}  O-O {[%clk 0:02:44]} 11. Rad1 {[%clk 0:02:39]}  Qa5 {[%clk 0:02:32]} 12. a3 {[%clk 0:02:26]}  Bxc3 {[%clk 0:02:22]} 13. bxc3 {[%clk 0:02:27]}  Ne4 {[%clk 0:02:22]} 14. Qe3 {[%clk 0:02:23]}  Qxc3 {[%clk 0:02:18]} 15. Rd3 {[%clk 0:02:23]}  Qxc2 {[%clk 0:02:13]} 16. Ne1 {[%clk 0:02:23]}  Qa2 {[%clk 0:01:23]} 17. Bxe4 {[%clk 0:02:21]}  Bxe4 {[%clk 0:01:23]} 18. Qxe4 {[%clk 0:02:22]}  Nd7 {[%clk 0:01:23]} 19. Nf3 {[%clk 0:02:20]}  Nf6 {[%clk 0:01:23]} 20. Qe5 {[%clk 0:02:17]}  Nd5 {[%clk 0:01:17]} 21. Bd2 {[%clk 0:01:44]}  Rfd8 {[%clk 0:01:03]} 22. Qh5 {[%clk 0:01:38]}  Qc4 {[%clk 0:00:56]} 23. Ne5 {[%clk 0:01:34]}  Qa6 {[%clk 0:00:48]} 24. Qxf7+ {[%clk 0:01:34]}  Kh8 {[%clk 0:00:48]} 25. Rf3 {[%clk 0:01:30]}  Qe2 {[%clk 0:00:31]} 26. Bg5 {[%clk 0:01:21]}  Re8 {[%clk 0:00:24]} 27. Qh5 {[%clk 0:01:18]}  Qe4 {[%clk 0:00:20]} 28. Nf7+ {[%clk 0:01:06]}  Kg8 {[%clk 0:00:14]} 29. Nd6 {[%clk 0:01:07]}  Qxd4 {[%clk 0:00:07]} 30. Qf7+ {[%clk 0:01:06]}  Kh8 {[%clk 0:00:06]} 31. Nxe8 {[%clk 0:01:06]}  h6 {[%clk 0:00:02]} 32. Qf8+ {[%clk 0:01:06]}  Kh7 {[%clk 0:00:02]} 33. Bf6 {[%clk 0:01:04]}  Nxf6 {[%clk 0:00:02]} 34. Qxg7# {[%clk 0:01:04]} 1-0


[Site "https://www.chess.com"]

[Event "Titled Tuesday Blitz August 08 Late 2023"]
[White "Sebag, Marie"]
[Black "Djordjevic, Dejan N"]
[WhiteFideId "617822"]
[BlackFideId "913316"]
[WhiteElo "2494"]
[BlackElo "2067"]
[Result "1-0"]
[Round "7"]
[TimeControl "180+1"]
[Date "2023.08.08"]
[WhiteClock "0:01:06"]
[BlackClock "0:00:30"]
[Board "98"]

1. d4 {[%clk 0:02:59]}  Nf6 {[%clk 0:02:59]} 2. c4 {[%clk 0:02:58]}  g6 {[%clk 0:02:59]} 3. Nc3 {[%clk 0:02:58]}  d6 {[%clk 0:02:59]} 4. e4 {[%clk 0:02:59]}  Bg7 {[%clk 0:03:00]} 5. Bg5 {[%clk 0:02:59]}  O-O {[%clk 0:03:00]} 6. Qd2 {[%clk 0:02:59]}  Re8 {[%clk 0:03:00]} 7. Be2 {[%clk 0:02:58]}  Nc6 {[%clk 0:02:57]} 8. d5 {[%clk 0:02:41]}  Ne5 {[%clk 0:02:55]} 9. f4 {[%clk 0:02:41]}  Ned7 {[%clk 0:02:52]} 10. Nf3 {[%clk 0:02:40]}  Nc5 {[%clk 0:02:49]} 11. Bd3 {[%clk 0:02:26]}  Nxd3+ {[%clk 0:02:31]} 12. Qxd3 {[%clk 0:02:26]}  c6 {[%clk 0:02:30]} 13. dxc6 {[%clk 0:01:59]}  bxc6 {[%clk 0:02:29]} 14. O-O {[%clk 0:01:59]}  Qb6+ {[%clk 0:02:24]} 15. Kh1 {[%clk 0:01:58]}  Qxb2 {[%clk 0:02:17]} 16. Rab1 {[%clk 0:01:58]}  Qa3 {[%clk 0:02:17]} 17. e5 {[%clk 0:01:58]}  Bf5 {[%clk 0:02:15]} 18. Qd2 {[%clk 0:01:52]}  dxe5 {[%clk 0:02:04]} 19. fxe5 {[%clk 0:01:44]}  Ne4 {[%clk 0:01:57]} 20. Nxe4 {[%clk 0:01:35]}  Bxe4 {[%clk 0:01:57]} 21. Rb3 {[%clk 0:01:33]}  Qa4 {[%clk 0:01:43]} 22. Qf4 {[%clk 0:01:27]}  Qxc4 {[%clk 0:01:26]} 23. Nd2 {[%clk 0:01:26]}  Qe6 {[%clk 0:01:16]} 24. Nxe4 {[%clk 0:01:21]}  Rf8 {[%clk 0:01:13]} 25. Rh3 {[%clk 0:01:13]}  Bxe5 {[%clk 0:01:11]} 26. Qh4 {[%clk 0:01:11]}  h5 {[%clk 0:01:09]} 27. Bxe7 {[%clk 0:01:11]}  Rfe8 {[%clk 0:01:04]} 28. Nf6+ {[%clk 0:01:09]}  Kg7 {[%clk 0:00:40]} 29. Nxh5+ {[%clk 0:01:05]}  gxh5 {[%clk 0:00:30]} 30. Qg5+ {[%clk 0:01:06]} 1-0


[Site "https://www.chess.com"]

[Event "Titled Tuesday Blitz August 08 Late 2023"]
[White "Altman, Joshua"]
[Black "Gajwa Ankit"]
[WhiteFideId "426210"]
[BlackFideId "5077834"]
[WhiteElo "2582"]
[BlackElo "2392"]
[Result "0-1"]
[Round "7"]
[TimeControl "180+1"]
[Date "2023.08.08"]
[WhiteClock "0:00:27"]
[BlackClock "0:01:21"]
[Board "101"]

1. Nf3 {[%clk 0:03:00]}  Nf6 {[%clk 0:02:57]} 2. b3 {[%clk 0:03:00]}  g6 {[%clk 0:02:58]} 3. Bb2 {[%clk 0:02:59]}  Bg7 {[%clk 0:02:59]} 4. g3 {[%clk 0:02:59]}  O-O {[%clk 0:02:59]} 5. Bg2 {[%clk 0:03:00]}  c5 {[%clk 0:02:57]} 6. O-O {[%clk 0:03:00]}  Nc6 {[%clk 0:02:58]} 7. c4 {[%clk 0:02:55]}  d5 {[%clk 0:02:57]} 8. cxd5 {[%clk 0:02:56]}  Nxd5 {[%clk 0:02:58]} 9. Bxg7 {[%clk 0:02:55]}  Kxg7 {[%clk 0:02:59]} 10. Qc1 {[%clk 0:02:55]}  b6 {[%clk 0:02:59]} 11. Nc3 {[%clk 0:02:55]}  Nc7 {[%clk 0:02:50]} 12. Qb2 {[%clk 0:02:46]}  Kg8 {[%clk 0:02:48]} 13. Rac1 {[%clk 0:02:45]}  Bb7 {[%clk 0:02:48]} 14. Rfd1 {[%clk 0:02:45]}  Nd4 {[%clk 0:02:45]} 15. e4 {[%clk 0:02:12]}  Nce6 {[%clk 0:02:40]} 16. d3 {[%clk 0:02:05]}  Nxf3+ {[%clk 0:02:35]} 17. Bxf3 {[%clk 0:02:05]}  Nd4 {[%clk 0:02:35]} 18. Bg2 {[%clk 0:02:05]}  e5 {[%clk 0:02:36]} 19. Ne2 {[%clk 0:02:03]}  Nxe2+ {[%clk 0:02:17]} 20. Qxe2 {[%clk 0:02:04]}  Qe7 {[%clk 0:02:17]} 21. Qe3 {[%clk 0:01:51]}  Rfd8 {[%clk 0:02:16]} 22. f4 {[%clk 0:01:49]}  exf4 {[%clk 0:02:15]} 23. gxf4 {[%clk 0:01:48]}  Rd4 {[%clk 0:02:10]} 24. Rc4 {[%clk 0:01:43]}  Rad8 {[%clk 0:02:08]} 25. Rxd4 {[%clk 0:01:43]}  Rxd4 {[%clk 0:02:09]} 26. Rd2 {[%clk 0:01:10]}  f5 {[%clk 0:01:45]} 27. e5 {[%clk 0:01:00]}  Bxg2 {[%clk 0:01:42]} 28. Rxg2 {[%clk 0:00:59]}  Kf7 {[%clk 0:01:40]} 29. Qh3 {[%clk 0:00:54]}  Ke6 {[%clk 0:01:38]} 30. Qf3 {[%clk 0:00:49]}  Qd7 {[%clk 0:01:33]} 31. Rd2 {[%clk 0:00:44]}  Qd5 {[%clk 0:01:33]} 32. Qe3 {[%clk 0:00:40]}  a5 {[%clk 0:01:30]} 33. h4 {[%clk 0:00:38]}  Qd8 {[%clk 0:01:29]} 34. Qg3 {[%clk 0:00:36]}  a4 {[%clk 0:01:24]} 35. bxa4 {[%clk 0:00:36]}  Rxa4 {[%clk 0:01:24]} 36. h5 {[%clk 0:00:30]}  Qd4+ {[%clk 0:01:24]} 37. Rf2 {[%clk 0:00:30]}  Rxa2 {[%clk 0:01:23]} 38. hxg6 {[%clk 0:00:19]}  Rxf2 {[%clk 0:01:19]} 39. Qxf2 {[%clk 0:00:19]}  Qxf2+ {[%clk 0:01:19]} 40. Kxf2 {[%clk 0:00:20]}  hxg6 {[%clk 0:01:19]} 41. Ke2 {[%clk 0:00:21]}  b5 {[%clk 0:01:17]} 42. Kd2 {[%clk 0:00:21]}  b4 {[%clk 0:01:17]} 43. Kc2 {[%clk 0:00:21]}  g5 {[%clk 0:01:17]} 44. fxg5 {[%clk 0:00:21]}  Kxe5 {[%clk 0:01:18]} 45. Kb3 {[%clk 0:00:22]}  f4 {[%clk 0:01:18]} 46. d4+ {[%clk 0:00:21]}  cxd4 {[%clk 0:01:18]} 47. Kxb4 {[%clk 0:00:21]}  f3 {[%clk 0:01:18]} 48. g6 {[%clk 0:00:21]}  Kf6 {[%clk 0:01:18]} 49. g7 {[%clk 0:00:22]}  Kxg7 {[%clk 0:01:19]} 50. Kc4 {[%clk 0:00:22]}  f2 {[%clk 0:01:19]} 51. Kxd4 {[%clk 0:00:23]}  f1=Q {[%clk 0:01:20]} 52. Kc3 {[%clk 0:00:23]}  Kf6 {[%clk 0:01:21]} 53. Kb4 {[%clk 0:00:24]}  Ke5 {[%clk 0:01:22]} 54. Kc3 {[%clk 0:00:25]}  Kd5 {[%clk 0:01:22]} 55. Kb4 {[%clk 0:00:26]}  Kd4 {[%clk 0:01:22]} 56. Ka4 {[%clk 0:00:26]}  Qb1 {[%clk 0:01:21]} 57. Ka5 {[%clk 0:00:26]}  Kc5 {[%clk 0:01:21]} 58. Ka4 {[%clk 0:00:27]}  Qb4# {[%clk 0:01:21]} 0-1


[Site "https://www.chess.com"]

[Event "Titled Tuesday Blitz August 08 Late 2023"]
[White "Leschinsky, Gary"]
[Black "Adan Bermudez, Sergio"]
[WhiteFideId "30951321"]
[BlackFideId "2292726"]
[WhiteElo "2376"]
[BlackElo "2559"]
[Result "0-1"]
[Round "7"]
[TimeControl "180+1"]
[Date "2023.08.08"]
[WhiteClock "0:01:46"]
[BlackClock "0:01:21"]
[Board "102"]

1. d4 {[%clk 0:03:00]}  d6 {[%clk 0:02:56]} 2. e4 {[%clk 0:03:00]}  Nf6 {[%clk 0:02:56]} 3. Nc3 {[%clk 0:02:57]}  e5 {[%clk 0:02:57]} 4. Nf3 {[%clk 0:02:56]}  Nbd7 {[%clk 0:02:57]} 5. Bc4 {[%clk 0:02:55]}  h6 {[%clk 0:02:57]} 6. dxe5 {[%clk 0:02:49]}  dxe5 {[%clk 0:02:56]} 7. Qe2 {[%clk 0:02:48]}  Bc5 {[%clk 0:02:53]} 8. Bxf7+ {[%clk 0:02:41]}  Kxf7 {[%clk 0:02:49]} 9. Qc4+ {[%clk 0:02:42]}  Kg6 {[%clk 0:02:42]} 10. Nxe5+ {[%clk 0:02:43]}  Nxe5 {[%clk 0:02:40]} 11. Qxc5 {[%clk 0:02:40]}  Qd6 {[%clk 0:02:38]} 12. Qe3 {[%clk 0:02:35]}  Neg4 {[%clk 0:02:31]} 13. Qe2 {[%clk 0:02:33]}  Re8 {[%clk 0:02:24]} 14. h3 {[%clk 0:02:32]}  Ne5 {[%clk 0:02:22]} 15. O-O {[%clk 0:02:28]}  Nc6 {[%clk 0:02:16]} 16. Rd1 {[%clk 0:02:23]}  Qc5 {[%clk 0:02:10]} 17. Be3 {[%clk 0:02:20]}  Qh5 {[%clk 0:02:10]} 18. f3 {[%clk 0:02:16]}  Ne5 {[%clk 0:02:01]} 19. Qf2 {[%clk 0:02:08]}  Bxh3 {[%clk 0:01:54]} 20. gxh3 {[%clk 0:02:05]}  Nxf3+ {[%clk 0:01:53]} 21. Kg2 {[%clk 0:02:04]}  Nh4+ {[%clk 0:01:52]} 22. Kh2 {[%clk 0:02:04]}  Nxe4 {[%clk 0:01:41]} 23. Rg1+ {[%clk 0:01:59]}  Kh7 {[%clk 0:01:39]} 24. Nxe4 {[%clk 0:01:58]}  Rxe4 {[%clk 0:01:38]} 25. Rg3 {[%clk 0:01:55]}  Nf5 {[%clk 0:01:31]} 26. Rf3 {[%clk 0:01:53]}  Nxe3 {[%clk 0:01:23]} 27. Rxe3 {[%clk 0:01:54]}  Rxe3 {[%clk 0:01:23]} 28. Qxe3 {[%clk 0:01:54]}  Re8 {[%clk 0:01:22]} 29. Qf2 {[%clk 0:01:46]}  Re2 {[%clk 0:01:21]} 0-1


[Site "https://www.chess.com"]

[Event "Titled Tuesday Blitz August 08 Late 2023"]
[White "Shapiro, Viktor"]
[Black "Topalov, Aleksandar"]
[WhiteFideId "4175700"]
[BlackFideId "925659"]
[WhiteElo "2549"]
[BlackElo "2373"]
[Result "1-0"]
[Round "7"]
[TimeControl "180+1"]
[Date "2023.08.08"]
[WhiteClock "0:02:05"]
[BlackClock "0:01:35"]
[Board "103"]

1. c4 {[%clk 0:03:00]}  e6 {[%clk 0:02:59]} 2. Nc3 {[%clk 0:03:01]}  f5 {[%clk 0:02:59]} 3. g3 {[%clk 0:03:00]}  Nf6 {[%clk 0:02:58]} 4. Bg2 {[%clk 0:03:00]}  Be7 {[%clk 0:02:56]} 5. Nf3 {[%clk 0:03:00]}  O-O {[%clk 0:02:56]} 6. d3 {[%clk 0:03:00]}  d6 {[%clk 0:02:55]} 7. O-O {[%clk 0:03:01]}  Qe8 {[%clk 0:02:49]} 8. e4 {[%clk 0:02:58]}  fxe4 {[%clk 0:02:49]} 9. dxe4 {[%clk 0:02:58]}  e5 {[%clk 0:02:46]} 10. b4 {[%clk 0:02:47]}  Qh5 {[%clk 0:02:33]} 11. Nh4 {[%clk 0:02:43]}  Bg4 {[%clk 0:02:25]} 12. f3 {[%clk 0:02:42]}  Be6 {[%clk 0:02:16]} 13. Nd5 {[%clk 0:02:38]}  Bd8 {[%clk 0:02:12]} 14. Bb2 {[%clk 0:02:19]}  Nc6 {[%clk 0:02:06]} 15. b5 {[%clk 0:02:17]}  Nd4 {[%clk 0:02:02]} 16. Bxd4 {[%clk 0:02:14]}  exd4 {[%clk 0:02:01]} 17. Qxd4 {[%clk 0:02:14]}  Nxd5 {[%clk 0:02:00]} 18. cxd5 {[%clk 0:02:12]}  Bf6 {[%clk 0:02:00]} 19. Qc4 {[%clk 0:02:06]}  Bxa1 {[%clk 0:01:57]} 20. dxe6 {[%clk 0:02:06]}  Qc5+ {[%clk 0:01:40]} 21. Qxc5 {[%clk 0:02:06]}  dxc5 {[%clk 0:01:35]} 22. Rxa1 {[%clk 0:02:05]} 1-0


[Site "https://www.chess.com"]